Workbook

Sheet 2月
A1: 城市居民最低生活保障工作情况统计表（一）
A2: 填报单位：鼓楼区民政局 (2026年2月）
A3: 区县 | C3: 非农 人口 总数 | D3: 保 障 对 象 情 况 | P3: 保障资金情况
D4: 户 数 | I4: 人 数 | O4: 保障对象占非农总人口比例 | P4: 本月发放金额 | Q4: 上月发放金额 | R4: 本月新增金额 | S4: 本月减少金额 | T4: 本月调增金额 | U4: 本月调减金额 | V4: 本月人均补差金额 | W4: 当年累计发放低保金额总额
D5: 本月数 | E5: 上月数 | F5: 本月新增数 | G5: 本月减少数 | H5: 本月调整数 | I5: 本月数 | J5: 上月数 | K5: 本月新增数 | L5: 本月减少数 | M5: 本月调增数 | N5: 本月调减数
C6: 万人 | D6: 户 | E6: 户 | F6: 户 | G6: 户 | H6: 户 | I6: 人 | J6: 人 | K6: 人 | L6: 人 | M6: 人 | N6: 人 | O6: （‰） | P6: 元 | Q6: 元 | R6: 元 | S6: 元 | T6: 元 | U6: 元 | V6: 元 | W6: 元
A7: 1 | C7: 2 | D7: 3 | E7: 4 | F7: 5 | G7: 6 | H7: 7 | I7: 8 | J7: 9 | K7: 10 | L7: 11 | M7: 12 | N7: 13 | O7: 14 | P7: 15 | Q7: 16 | R7: 17 | S7: 18 | T7: 19 | U7: 20 | V7: 21 | W7: 22
A8: 1 | B8: 华侨路 | C8: 7.02 | D8: 117 | E8: 117 | F8: 1 | G8: 1 | H8: 1 | I8: 164 | J8: 166 | K8: 1 | L8: 2 | M8: 0 | N8: 1 | O8: =I8/C8/10 -> 2.34 | P8: 147316 | Q8: 150485 | R8: 927 | S8: 2565 | T8: 0 | U8: 1531 | V8: =P8/I8 -> 898.27 | W8: 297801
A9: 2 | B9: 宁海路 | C9: 8.35 | D9: 120 | E9: 119 | F9: 1 | G9: 0 | H9: 0 | I9: 141 | J9: 140 | K9: 1 | L9: 0 | M9: 0 | N9: 0 | O9: =I9/C9/10 -> 1.69 | P9: 151492 | Q9: 150377 | R9: 1115 | S9: 0 | T9: 0 | U9: 0 | V9: =P9/I9 -> 1074.41 | W9: 301869
A10: 3 | B10: 湖南路 | C10: 6.30 | D10: =E10+F10-G10 -> 121 | E10: 121 | F10: 0 | G10: 0 | H10: 1 | I10: =J10+K10-L10+M10-N10 -> 152 | J10: 152 | K10: 0 | L10: 0 | M10: 0 | N10: 0 | O10: 2.41 | P10: =Q10+R10-S10+T10-U10 -> 153325 | Q10: 152990 | R10: 0 | S10: 0 | T10: 335 | U10: 0 | V10: 1008.72 | W10: 306315
A11: 4 | B11: 中央门 | C11: 9.94 | D11: 296 | E11: 293 | F11: 4 | G11: 1 | H11: 1 | I11: 409 | J11: 406 | K11: 4 | L11: 1 | M11: 0 | N11: 0 | O11: 4.11 | P11: 380945 | Q11: 378281 | R11: 3283 | S11: 624 | T11: 5 | U11: 0 | V11: 931.41 | W11: 759226
A12: 5 | B12: 挹江门 | C12: 7.13 | D12: 187 | E12: 186 | F12: 1 | G12: 0 | H12: 0 | I12: 242 | J12: 241 | K12: 1 | L12: 0 | M12: 0 | N12: 0 | O12: 3.39 | P12: 242093 | Q12: 240978 | R12: 1115 | S12: 0 | T12: 0 | U12: 0 | V12: 1000.38 | W12: 483071
A13: 6 | B13: 江东 | C13: 11.21 | D13: 69 | E13: 69 | F13: 0 | G13: 0 | H13: 0 | I13: 99 | J13: 99 | K13: 0 | L13: 0 | M13: 0 | N13: 0 | O13: 0.88 | P13: 88548 | Q13: 88548 | R13: 0 | S13: 0 | T13: 0 | U13: 0 | V13: 894.42 | W13: 177096
A14: 7 | B14: 凤凰 | C14: 10.40 | D14: 197 | E14: 195 | F14: 3 | G14: 1 | H14: 0 | I14: 263 | J14: 261 | K14: 3 | L14: 1 | M14: 0 | N14: 0 | O14: 2.53 | P14: 254932 | Q14: 251923 | R14: 3457 | S14: 448 | T14: 0 | U14: 0 | V14: 969.32 | W14: 506855
A15: 8 | B15: 热南 | C15: 6.72 | D15: 175 | E15: 174 | F15: 2 | G15: 1 | H15: 0 | I15: 230 | J15: 229 | K15: 2 | L15: 1 | M15: 0 | N15: 0 | O15: 3.42 | P15: 204181 | Q15: 203229 | R15: 1879 | S15: 927 | T15: 0 | U15: 0 | V15: 887.74 | W15: 407410
A16: 9 | B16: 下关 | C16: 4.02 | D16: =E16+F16-G16 -> 298 | E16: 299 | F16: 2 | G16: 3 | H16: 2 | I16: =J16+K16-L16+M16-N16 -> 387 | J16: 388 | K16: 2 | L16: 3 | M16: 0 | N16: 0 | O16: 9.63 | P16: =Q16+R16-S16+T16-U16 -> 347317 | Q16: 349860 | R16: 760 | S16: 3358 | T16: 292 | U16: 237 | V16: 897.46 | W16: 697177
A17: 10 | B17: 建宁路 | C17: 3.87 | D17: 169 | E17: 169 | F17: 2 | G17: 2 | H17: 0 | I17: 221 | J17: 220 | K17: 3 | L17: 2 | M17: 0 | N17: 0 | O17: 5.71 | P17: 216357 | Q17: 216073 | R17: 2069 | S17: 1785 | T17: 0 | U17: 0 | V17: 978.99 | W17: 432430
A18: 11 | B18: 小市 | C18: 6.15 | D18: 244 | E18: 243 | F18: 1 | G18: 0 | H18: 0 | I18: 326 | J18: 325 | K18: 1 | L18: 0 | M18: 0 | N18: 0 | O18: 5.30 | P18: 300450 | Q18: 299335 | R18: 1115 | S18: 0 | T18: 0 | U18: 0 | V18: 921.63 | W18: 599785
A19: 12 | B19: 宝塔桥 | C19: 8.91 | D19: 492 | E19: 492 | F19: 2 | G19: 2 | H19: 5 | I19: 706 | J19: 707 | K19: 2 | L19: 2 | M19: 0 | N19: 1 | O19: 7.92 | P19: 642758 | Q19: 644417 | R19: 1238 | S19: 2565 | T19: 672 | U19: 1004 | V19: 910.42 | W19: 1287175
A20: 13 | B20: 幕府山 | C20: 5.85 | D20: =E20+F20-G20 -> 194 | E20: 199 | F20: 0 | G20: 5 | H20: 0 | I20: =J20+K20-L20+M20-N20 -> 265 | J20: 270 | K20: 0 | L20: 5 | M20: 0 | N20: 0 | O20: 4.53 | P20: =Q20+R20-S20+T20-U20 -> 264877 | Q20: 268834 | R20: 0 | S20: 3957 | T20: 0 | U20: 0 | V20: 999.54 | W20: 533711
A21: 合计 | C21: =SUM(C8:C20) -> 95.87 | D21: 2679 | E21: 2676 | F21: 19 | G21: 16 | H21: 10 | I21: 3605 | J21: 3604 | K21: 20 | L21: 17 | M21: 0 | N21: 2 | O21: 3.76 | P21: 3394591 | Q21: 3395330 | R21: 16958 | S21: 16229 | T21: 1304 | U21: 2772 | V21: 941.63 | W21: 6789921
A22: 填表人： 填表时间： 2026.2 签批人：
W37: 17772608
